[Event "5th Ordu Open 2019"]
[Site "Ordu"]
[Date "2019.05.02"]
[Round "5.10"]
[White "Elashvili, Giorgi"]
[Black "Rahmatian, Shayan"]
[Result "1-0"]
[ECO "B15"]
[WhiteElo "1833"]
[BlackElo "1991"]
[Annotator "NA RC"]
[PlyCount "117"]
[EventDate "2019.04.29"]
[EventType "swiss"]
[EventCountry "TUR"]
[SourceTitle "playchess.com"]
[Source "ChessBase"]
[SourceQuality "1"]
[TimeControl "5400+30"]

1. e4 {[%emt 0:30:30]} c6 {[%emt 0:35:30]} 2. d4 {[%emt 0:00:30]} d5 {[%emt 0:00:30]} 3. Nc3 {[%emt 0:00:30]} b5 {[%emt 0:00:30]} 4. a3 {[%emt 0:00:30]} dxe4 {[%emt 0:00:30]} 5. Nxe4 {[%emt 0:00:30]} Nf6 {[%emt 0:00:00]} 6. Nxf6+ {[%emt 0:00:00] B15: Caro-Kann: 3 Nc3: 3...g6 and 3...dxe4 4 Nxe4 Nf6 5 Nxf6+ exf6} exf6 {[%emt 0:00:00]} 7. c3 {[%emt 0:00:00]} Bd6 {[%emt 0:00:30]} 8. Bd3 {[%emt 0:00:30]} Be6 $146 {[%emt 0:00:00]} ({Predecessor:} 8... O-O 9. Ne2 Nd7 10. O-O Qc7 11. Ng3 Re8 12. Nf5 Nb6 13. Nxd6 Qxd6 {½-½ (35) Gabrielian,A (2541)-Khismatullin,D (2656) St Petersburg 2013}) 9. Ne2 {[%emt 0:01:30]} Qc7 {[%emt 0:01:00]} 10. Qc2 {[%emt 0:01:30]} Nd7 {[%emt 0:01:30]} 11. a4 {[%emt 0:02:30]} Rb8 {[%emt 0:04:30]} 12. Ng3 {[%emt 0:05:30]} ({White should play} 12. axb5 $16 cxb5 13. g3) 12... g6 {[%emt 0:06:30]} 13. Bh6 {[%emt 0:03:30]} bxa4 {[%emt 0:07:30]} 14. O-O {[%emt 0:07:30]} ({Not} 14. Rxa4 Bb3 $17) 14... Bf4 {[%emt 0:04:30]} (14... a3 $1 $14) 15. Bxf4 {[%emt 0:00:30]} Qxf4 {[%emt 0:00:00]} 16. Rxa4 {[%emt 0:09:30]} Qc7 {[%emt 0:13:00]} 17. Rfa1 {[%emt 0:00:30]} f5 {[%emt 0:01:30]} 18. Rxa7 {[%emt 0:01:30]} Qd6 {[%emt 0:00:30]} 19. b4 {[%emt 0:04:30]} h5 {[%emt 0:00:30]} 20. R1a6 {[%emt 0:14:06]} h4 {[%emt 0:01:30]} 21. Ne2 {[%emt 0:00:18]} h3 {[%emt 0:01:16]} (21... O-O $142 22. b5 Nb6) 22. g3 {[%emt 0:00:41]} Nf6 {[%emt 0:04:02]} 23. Nf4 {[%emt 0:05:08]} Kf8 {[%emt 0:10:47]} 24. b5 {[%emt 0:02:41]} Bd5 {[%emt 0:03:58]} 25. bxc6 {[%emt 0:00:39]} Re8 {[%emt 0:01:37]} 26. Qc1 {[%emt 0:04:54]} Kg7 {[%emt 0:00:25]} 27. c7 {[%emt 0:00:16]} Qd7 {[%emt 0:00:25]} 28. c8=Q {[%emt 0:03:05]} Qxc8 {[%emt 0:00:10]} 29. Rxf6 {[%emt 0:00:10]} Kxf6 {[%emt 0:01:04]} 30. Nxd5+ {[%emt 0:00:30]} Kg7 {[%emt 0:00:03]} 31. Qg5 $2 {[%emt 0:00:39]} ({White should play} 31. c4 $18) 31... Qe6 {[%emt 0:00:56]} 32. Ne3 {[%emt 0:00:34]} Rh5 {[%emt 0:00:49]} 33. Qf4 {[%emt 0:00:25]} Qb6 {[%emt 0:00:19]} 34. Rc7 {[%emt 0:00:47]} Rhh8 {[%emt 0:00:29]} 35. Bc4 {[%emt 0:00:47]} Rhf8 {[%emt 0:00:01]} 36. Rd7 {[%emt 0:00:41]} Qb1+ {[%emt 0:00:30]} 37. Nf1 {[%emt 0:00:00]} Qb6 {[%emt 0:00:14]} 38. Qc7 {[%emt 0:00:12]} Qxc7 {[%emt 0:01:10]} 39. Rxc7 {[%emt 0:00:30]} Rc8 {[%emt 0:00:30]} 40. Rxc8 {[%emt 0:00:30]} Rxc8 {[%emt 0:00:00]} 41. Ne3 {[%emt 0:00:00]} Ra8 {[%emt 0:00:00]} 42. Kf1 {[%emt 0:01:05]} Ra1+ {[%emt 0:00:02]} 43. Ke2 {[%emt 0:00:00]} Kf6 {[%emt 0:00:11]} 44. Bd3 {[%emt 0:00:10]} Kg5 {[%emt 0:00:50]} 45. f4+ {[%emt 0:01:06]} Kf6 {[%emt 0:00:09]} 46. Kf3 {[%emt 0:00:23]} Ra3 {[%emt 0:01:15]} 47. Nd1 {[%emt 0:00:58]} g5 {[%emt 0:00:37]} 48. fxg5+ {[%emt 0:00:15]} Kxg5 {[%emt 0:00:33]} 49. Ke3 {[%emt 0:00:25]} Kf6 {[%emt 0:01:07]} 50. c4 {[%emt 0:00:34]} Ra8 {[%emt 0:00:31]} 51. c5 {[%emt 0:00:46]} Ke6 {[%emt 0:00:16]} 52. Bc4+ {[%emt 0:00:30]} Kf6 {[%emt 0:00:02]} 53. c6 {[%emt 0:00:42]} Ke7 {[%emt 0:00:16]} 54. Nc3 {[%emt 0:00:23]} Kd6 {[%emt 0:00:45]} 55. Nb5+ {[%emt 0:00:42]} Ke7 {[%emt 0:00:22]} 56. d5 {[%emt 0:00:02]} Ra4 {[%emt 0:01:42]} 57. d6+ {[%emt 0:00:30]} Kd8 {[%emt 0:00:30]} 58. c7+ {[%emt 0:00:30]} Kd7 {[%emt 0:00:30]} 59. Bxf7 {[%emt 0:00:22]} 1-0

[Event "5th Ordu Open 2019"]
[Site "Ordu"]
[Date "2019.05.02"]
[Round "5.11"]
[White "Atas, Yunus"]
[Black "Khvadagiani, Nika"]
[Result "1-0"]
[ECO "A48"]
[WhiteElo "1853"]
[BlackElo "1883"]
[Annotator "NA RC"]
[PlyCount "147"]
[EventDate "2019.04.29"]
[EventType "swiss"]
[EventCountry "TUR"]
[SourceTitle "playchess.com"]
[Source "ChessBase"]
[SourceQuality "1"]
[TimeControl "5400+30"]

1. d4 {[%emt 0:42:30]} Nf6 {[%emt 0:32:30]} 2. Bf4 {[%emt 0:00:30]} g6 {[%emt 0:00:30]} 3. e3 {[%emt 0:07:30]} Bg7 {[%emt 0:00:30]} 4. Nf3 {[%emt 0:00:30]} d6 {[%emt 0:00:00]} 5. h3 {[%emt 0:00:30]} Nbd7 {[%emt 0:01:00]} 6. Be2 {[%emt 0:00:30]} O-O {[%emt 0:01:30]} 7. O-O {[%emt 0:00:30]} Re8 {[%emt 0:00:30]} 8. a4 {[%emt 0:01:30] A48: 1 d4 Nf6 2 Nf3 g6: Torre, London and Colle Systems} (8. c4 b6 9. Nc3 Bb7 10. Qc2 e5 11. Bg5 exd4 12. exd4 h6 13. Be3 Ne4 14. Nxe4 Bxe4 15. Qd2 d5 16. Bxh6 dxc4 17. Bg5 Bf6 18. h4 b5 {½-½ (60) Khotenashvili,B (2445)-Muzychuk,M (2546) Riga 2017}) 8... e5 $146 {[%emt 0:00:30]} (8... Ne4 $11) ({Predecessor:} 8... b6 9. a5 a6 10. axb6 cxb6 11. c3 Bb7 12. Nbd2 e5 13. Bh2 exd4 14. exd4 d5 15. Re1 Ne4 {1-0 (55) Dos Santos,H (2247)-Florianovitz,D (2064) Florianopolis 2013}) 9. dxe5 {[%emt 0:00:30]} dxe5 {[%emt 0:08:30]} 10. Nxe5 {[%emt 0:01:30]} g5 {[%emt 0:00:00] [#]} 11. Bh2 $1 {[%emt 0:03:30]} Ne4 {[%emt 0:10:00]} 12. Nxd7 {[%emt 0:02:30]} Bxd7 {[%emt 0:00:00]} 13. c3 {[%emt 0:00:30]} Qe7 {[%emt 0:00:00]} 14. Nd2 {[%emt 0:02:30]} Bc6 {[%emt 0:01:30]} 15. Nxe4 {[%emt 0:04:30]} Bxe4 {[%emt 0:00:30]} 16. Qb3 {[%emt 0:01:30]} Kh8 {[%emt 0:00:30]} 17. Rfd1 {[%emt 0:01:30]} f5 {[%emt 0:02:30]} 18. Rd2 {[%emt 0:01:30]} Rad8 {[%emt 0:05:30] [#]} 19. Rad1 {[%emt 0:00:30]} ({White should play} 19. Rxd8 $1 $18 Rxd8 20. Rd1) 19... Rxd2 {[%emt 0:00:30]} 20. Rxd2 {[%emt 0:00:30]} Rf8 {[%emt 0:02:30]} (20... f4 $16 {keeps fighting.}) 21. Qd1 {[%emt 0:05:30]} f4 {[%emt 0:01:30]} 22. Rd7 {[%emt 0:01:36]} Qe6 {[%emt 0:09:30]} 23. exf4 {[%emt 0:04:04]} gxf4 {[%emt 0:01:40]} 24. Rd8 {[%emt 0:00:29]} Qf6 {[%emt 0:08:06]} 25. Rxf8+ {[%emt 0:00:57]} Bxf8 {[%emt 0:01:26]} 26. Qd4 {[%emt 0:07:04]} Qxd4 {[%emt 0:00:37]} 27. cxd4 {[%emt 0:00:01]} Bd6 {[%emt 0:01:22]} 28. g3 {[%emt 0:04:21]} a5 {[%emt 0:04:18]} 29. Bd1 {[%emt 0:02:04]} c6 {[%emt 0:06:15]} 30. gxf4 {[%emt 0:00:19]} Kg7 {[%emt 0:00:00]} 31. f3 {[%emt 0:01:54]} Bd3 {[%emt 0:00:19]} 32. Kf2 Kf6 {[%emt 0:00:22]} 33. Ke3 {[%emt 0:02:19]} Bf5 {[%emt 0:00:30]} 34. h4 {[%emt 0:00:00]} Bb1 {[%emt 0:01:44]} 35. Bb3 {[%emt 0:00:34]} Bg6 {[%emt 0:00:11]} 36. Bg3 {[%emt 0:00:31]} Bb1 {[%emt 0:00:03]} (36... Bb4 $16 {was necessary.} 37. Ke2 h6) 37. Be1 {[%emt 0:00:21]} b6 {[%emt 0:00:35]} 38. Bg8 {[%emt 0:01:07]} Bc2 {[%emt 0:00:26]} 39. b3 {[%emt 0:00:09]} Kg7 {[%emt 0:01:32]} 40. Bc4 {[%emt 0:00:30]} Kf6 {[%emt 0:00:00]} 41. Bg8 {[%emt 0:01:17]} Kg7 {[%emt 0:00:03]} 42. Be6 {[%emt 0:00:15]} Kf6 {[%emt 0:00:07]} 43. f5 {[%emt 0:00:21]} Bxf5 {[%emt 0:00:14]} 44. Bxf5 {[%emt 0:01:05]} (44. Bd2 $2 {[%emt 0:00:42][%mdl 8192]}) (44. Bc4 $16) 44... Kxf5 {[%emt 0:00:30]} 45. Bd2 {[%emt 0:00:30]} Bf4+ {[%emt 0:00:30]} 46. Kd3 {[%emt 0:00:30]} Bxd2 {[%emt 0:00:30]} 47. Kxd2 {[%emt 0:00:30]} Kf4 {[%emt 0:00:30]} 48. Ke2 {[%emt 0:00:30]} Kg3 {[%emt 0:00:30]} 49. Ke3 {[%emt 0:00:30]} Kxh4 {[%emt 0:00:30]} 50. f4 {[%emt 0:00:30]} Kh5 {[%emt 0:00:30]} 51. Ke4 {[%emt 0:00:30]} Kg6 {[%emt 0:00:30]} 52. Ke5 {[%emt 0:00:30]} h5 {[%emt 0:00:30]} 53. Ke6 {[%emt 0:00:30]} h4 {[%emt 0:00:30]} 54. f5+ {[%emt 0:00:30]} Kg5 {[%emt 0:00:30]} 55. f6 {[%emt 0:00:30]} h3 {[%emt 0:00:30]} 56. f7 {[%emt 0:00:30]} h2 {[%emt 0:00:30]} 57. f8=Q {[%emt 0:00:30]} h1=Q {[%emt 0:00:30]} 58. Qf5+ {[%emt 0:00:30]} Kh6 {[%emt 0:00:30]} 59. Qf6+ {[%emt 0:00:30]} Kh7 {[%emt 0:00:09]} 60. Qf7+ {[%emt 0:00:00]} Kh8 {[%emt 0:00:13]} 61. Kd6 {[%emt 0:00:41]} b5 {[%emt 0:02:28]} 62. Qe8+ {[%emt 0:00:17]} Kg7 {[%emt 0:00:11]} 63. Qxc6 {[%emt 0:00:06]} Qh2+ {[%emt 0:00:46]} 64. Kc5 {[%emt 0:01:02]} bxa4 {[%emt 0:00:28]} 65. bxa4 {[%emt 0:00:07]} Qc2+ {[%emt 0:00:14]} 66. Kd6 {[%emt 0:00:51]} Qg6+ {[%emt 0:00:54]} 67. Kc7 {[%emt 0:00:30]} Qg3+ {[%emt 0:00:00]} 68. Kc8 {[%emt 0:00:09]} Qe3 {[%emt 0:01:27]} 69. d5 {[%emt 0:00:13]} Kf7 {[%emt 0:00:03]} 70. Qc7+ {[%emt 0:01:08]} Kf8 {[%emt 0:00:29]} 71. d6 {[%emt 0:00:12]} Qe6+ {[%emt 0:00:32]} 72. d7 {[%emt 0:00:52]} Ke7 {[%emt 0:00:28]} 73. Qc5+ {[%emt 0:00:15]} Kf7 {[%emt 0:00:30]} 74. Kc7 {[%emt 0:00:43]} 1-0

[Event "5th Ordu Open 2019"]
[Site "Ordu"]
[Date "2019.05.02"]
[Round "5.12"]
[White "Bolkvadze, Tedo"]
[Black "Civelek, Mehmet Eren"]
[Result "1/2-1/2"]
[ECO "D78"]
[WhiteElo "1588"]
[BlackElo "1260"]
[Annotator "NA"]
[PlyCount "158"]
[EventDate "2019.04.29"]
[EventType "swiss"]
[EventCountry "TUR"]
[SourceTitle "playchess.com"]
[Source "ChessBase"]
[SourceQuality "1"]
[TimeControl "5400+30"]

1. d4 {[%emt 0:30:30]} d5 {[%emt 0:30:30]} 2. c4 {[%emt 0:00:30]} c6 {[%emt 0:00:30]} 3. Nf3 {[%emt 0:00:30]} Nf6 {[%emt 0:00:00]} 4. g3 {[%emt 0:00:00]} g6 {[%emt 0:00:00]} 5. Bg2 {[%emt 0:00:00]} Bg7 {[%emt 0:00:00]} 6. O-O {[%emt 0:00:00]} O-O {[%emt 0:00:00]} 7. Nc3 {[%emt 0:01:00]} dxc4 {[%emt 0:00:30]} 8. Ne5 {[%emt 0:00:30]} Nbd7 {[%emt 0:00:30]} 9. Nxc4 {[%emt 0:01:30]} Nb6 {[%emt 0:00:30]} 10. Nxb6 {[%emt 0:04:30]} Qxb6 {[%emt 0:00:30]} 11. Na4 {[%emt 0:00:00]} Qb5 {[%emt 0:00:30]} 12. e4 {[%emt 0:03:00]} Rd8 {[%emt 0:01:30]} 13. Be3 {[%emt 0:02:30]} h6 {[%emt 0:00:30]} 14. Qc2 {[%emt 0:00:30]} Qh5 {[%emt 0:00:30]} 15. Qc5 {[%emt 0:01:30]} Qxc5 {[%emt 0:00:30]} 16. Nxc5 {[%emt 0:00:30]} Nd7 {[%emt 0:00:30]} 17. Nxd7 {[%emt 0:03:30]} Bxd7 {[%emt 0:00:30]} 18. Rac1 {[%emt 0:00:00]} Be6 {[%emt 0:00:30]} 19. d5 {[%emt 0:06:00]} cxd5 {[%emt 0:00:30]} 20. exd5 {[%emt 0:00:30]} Bxd5 {[%emt 0:00:30]} 21. Rc7 {[%emt 0:00:00]} Bxg2 {[%emt 0:00:30]} 22. Kxg2 {[%emt 0:00:00]} b6 {[%emt 0:00:00]} 23. Rxe7 {[%emt 0:00:30]} Bxb2 {[%emt 0:00:00]} 24. Bxh6 {[%emt 0:00:30]} Bf6 {[%emt 0:00:30]} 25. Rc7 {[%emt 0:00:30]} Rdc8 {[%emt 0:01:30]} 26. Rfc1 {[%emt 0:00:30]} Rxc7 {[%emt 0:00:30]} 27. Rxc7 {[%emt 0:00:30]} a5 {[%emt 0:00:30]} 28. Rb7 {[%emt 0:00:30]} Bd4 {[%emt 0:00:30]} 29. Rd7 {[%emt 0:07:30]} Bc5 {[%emt 0:00:30]} 30. Bg5 {[%emt 0:00:00]} Kg7 {[%emt 0:00:30]} 31. Bd8 {[%emt 0:02:00]} a4 {[%emt 0:01:30]} 32. g4 {[%emt 0:01:30]} b5 {[%emt 0:01:30]} 33. g5 {[%emt 0:02:30]} b4 {[%emt 0:00:30]} 34. Bf6+ {[%emt 0:03:30]} Kf8 {[%emt 0:00:30]} 35. f4 {[%emt 0:00:00]} Ke8 {[%emt 0:00:00]} 36. Rd3 {[%emt 0:06:00]} Rb8 {[%emt 0:01:00]} 37. h4 {[%emt 0:06:33]} b3 {[%emt 0:00:30]} 38. axb3 {[%emt 0:00:26]} axb3 {[%emt 0:00:30]} 39. Bb2 {[%emt 0:00:05]} Rb4 {[%emt 0:00:30]} 40. Kf3 {[%emt 0:00:53]} Ke7 {[%emt 0:00:30]} 41. Rd2 {[%emt 0:05:43]} Bd6 {[%emt 0:03:30]} 42. Re2+ {[%emt 0:00:12]} Kd7 {[%emt 0:00:30]} 43. Re4 {[%emt 0:00:16]} Rb5 {[%emt 0:00:30]} 44. Kg4 {[%emt 0:02:07]} Rd5 {[%emt 0:00:30]} 45. Re3 {[%emt 0:00:16]} Rb5 {[%emt 0:00:30]} 46. Kf3 {[%emt 0:04:13]} Kc6 {[%emt 0:00:30]} 47. Rc3+ {[%emt 0:03:28]} Kb7 {[%emt 0:01:30]} 48. Rc4 {[%emt 0:00:23]} Kb6 {[%emt 0:01:30]} 49. Kg4 {[%emt 0:01:15]} Ka5 {[%emt 0:00:30]} 50. h5 {[%emt 0:00:45]} gxh5+ {[%emt 0:00:30]} 51. Kxh5 {[%emt 0:00:00]} Rd5 {[%emt 0:00:30]} 52. Kh6 {[%emt 0:03:08]} Rf5 {[%emt 0:00:30]} 53. Bc1 {[%emt 0:00:47]} Kb5 {[%emt 0:00:30]} 54. Re4 {[%emt 0:00:01]} Bf8+ {[%emt 0:01:30]} 55. Kh7 {[%emt 0:00:22]} Bd6 {[%emt 0:00:00]} 56. g6 {[%emt 0:01:48]} fxg6 {[%emt 0:00:00]} 57. Kxg6 {[%emt 0:00:00]} Rf8 {[%emt 0:00:30]} 58. f5 {[%emt 0:00:02]} Rg8+ {[%emt 0:00:30]} 59. Kh7 {[%emt 0:01:45]} Rf8 {[%emt 0:00:00]} 60. Kg6 {[%emt 0:00:32]} Rg8+ {[%emt 0:00:00]} 61. Kh5 {[%emt 0:01:07]} Rh8+ {[%emt 0:00:30]} 62. Kg4 {[%emt 0:00:42]} Rg8+ {[%emt 0:00:30]} 63. Kh5 {[%emt 0:00:56]} Rh8+ {[%emt 0:00:30]} 64. Kg6 {[%emt 0:00:30]} Rg8+ {[%emt 0:00:30]} 65. Kf7 {[%emt 0:00:00]} Rf8+ {[%emt 0:00:00]} 66. Kg6 {[%emt 0:01:03]} Rg8+ {[%emt 0:00:00]} 67. Kf6 {[%emt 0:00:36]} Rf8+ {[%emt 0:00:00]} 68. Ke6 {[%emt 0:00:02]} Re8+ {[%emt 0:00:00]} 69. Kd5 {[%emt 0:00:30]} Rxe4 {[%emt 0:00:30]} 70. Kxe4 {[%emt 0:00:30]} Kc4 {[%emt 0:00:00]} 71. Bb2 {[%emt 0:00:00]} Bf8 {[%emt 0:00:00]} 72. f6 {[%emt 0:00:28]} Bd6 {[%emt 0:00:00]} 73. f7 {[%emt 0:00:35]} Bf8 {[%emt 0:00:00]} 74. Ke5 {[%emt 0:00:57]} Kd3 {[%emt 0:00:00]} 75. Ke6 {[%emt 0:00:25]} Kc2 {[%emt 0:00:00]} 76. Bf6 {[%emt 0:00:30]} b2 {[%emt 0:00:30]} 77. Bxb2 {[%emt 0:00:00]} Kxb2 {[%emt 0:00:30]} 78. Kd7 {[%emt 0:00:22]} Kc3 {[%emt 0:00:30]} 79. Ke8 {[%emt 0:00:30]} Ba3 {[%emt 0:00:00]} 1/2-1/2

[Event "5th Ordu Open 2019"]
[Site "Ordu"]
[Date "2019.05.02"]
[Round "5.13"]
[White "Deveci, Huseyin Said"]
[Black "Yurdamli, Tahsin"]
[Result "1/2-1/2"]
[ECO "B22"]
[WhiteElo "1274"]
[BlackElo "1445"]
[Annotator "NA"]
[PlyCount "134"]
[EventDate "2019.04.29"]
[EventType "swiss"]
[EventCountry "TUR"]
[SourceTitle "playchess.com"]
[Source "ChessBase"]
[SourceQuality "1"]
[TimeControl "5400+30"]

1. e4 {[%emt 0:30:30]} c5 {[%emt 0:30:30]} 2. c3 {[%emt 0:00:00]} d6 {[%emt 0:00:00]} 3. d4 {[%emt 0:00:00]} cxd4 {[%emt 0:00:00]} 4. cxd4 {[%emt 0:00:30]} Nf6 {[%emt 0:00:30]} 5. Nc3 {[%emt 0:00:00]} a6 {[%emt 0:00:00]} 6. a4 {[%emt 0:03:00]} Nc6 {[%emt 0:00:00]} 7. Nf3 {[%emt 0:00:00]} Bg4 {[%emt 0:00:30]} 8. Be2 {[%emt 0:02:00]} e6 {[%emt 0:00:30]} 9. O-O {[%emt 0:01:30]} Be7 {[%emt 0:00:30]} 10. Be3 {[%emt 0:00:00]} O-O {[%emt 0:00:30]} 11. h3 {[%emt 0:00:00]} Bh5 {[%emt 0:00:00]} 12. Qd2 {[%emt 0:08:30]} Rc8 {[%emt 0:01:00]} 13. Rac1 {[%emt 0:00:30]} Na5 {[%emt 0:00:30]} 14. Qc2 {[%emt 0:02:30]} Nc4 {[%emt 0:02:30]} 15. b3 {[%emt 0:05:30]} Nxe3 {[%emt 0:00:30]} 16. fxe3 {[%emt 0:01:30]} d5 {[%emt 0:03:30]} 17. exd5 {[%emt 0:07:30]} Nxd5 {[%emt 0:00:30]} 18. Qd3 {[%emt 0:02:30]} Bg6 {[%emt 0:00:30]} 19. e4 {[%emt 0:01:30]} Nf4 {[%emt 0:03:30]} 20. Qe3 {[%emt 0:01:30]} Nxe2+ {[%emt 0:00:30]} 21. Nxe2 {[%emt 0:00:30]} Qb6 {[%emt 0:01:30]} 22. Nf4 {[%emt 0:01:30]} Rfd8 {[%emt 0:01:30]} 23. Nxg6 {[%emt 0:00:30]} hxg6 {[%emt 0:00:30]} 24. Kh1 {[%emt 0:04:30]} Bf6 {[%emt 0:04:30]} 25. e5 {[%emt 0:00:30]} Be7 {[%emt 0:00:30]} 26. Rfd1 {[%emt 0:05:30]} Rc6 {[%emt 0:02:30]} 27. Rxc6 {[%emt 0:01:30]} Qxc6 {[%emt 0:00:30]} 28. Rc1 {[%emt 0:00:33]} Qd7 {[%emt 0:00:30]} 29. Qc3 {[%emt 0:02:35]} b5 {[%emt 0:03:30]} 30. Qa5 {[%emt 0:02:38]} Rc8 {[%emt 0:02:30]} 31. Rxc8+ {[%emt 0:00:51]} Qxc8 {[%emt 0:00:30]} 32. axb5 {[%emt 0:00:13]} axb5 {[%emt 0:00:30]} 33. Qxb5 {[%emt 0:00:08]} Qc1+ {[%emt 0:01:30]} 34. Kh2 {[%emt 0:01:30]} Qf4+ {[%emt 0:00:30]} 35. Kg1 {[%emt 0:02:25]} Qe3+ {[%emt 0:00:30]} 36. Kf1 {[%emt 0:02:04]} Qc1+ {[%emt 0:01:30]} 37. Kf2 {[%emt 0:00:55]} Qc2+ {[%emt 0:01:30]} 38. Kg3 {[%emt 0:01:08]} Qf5 {[%emt 0:01:30]} 39. Qe8+ {[%emt 0:04:10]} Bf8 {[%emt 0:00:30]} 40. Qb8 {[%emt 0:00:17]} f6 {[%emt 0:00:30]} 41. b4 {[%emt 0:00:44]} g5 {[%emt 0:01:30]} 42. exf6 {[%emt 0:00:40]} gxf6 {[%emt 0:00:00]} 43. b5 {[%emt 0:00:01]} Qd5 {[%emt 0:02:00]} 44. b6 {[%emt 0:02:23]} Kg7 {[%emt 0:00:30]} 45. Qa7+ {[%emt 0:00:07]} Kg6 {[%emt 0:00:00]} 46. b7 {[%emt 0:01:24]} Bd6+ {[%emt 0:01:00]} 47. Kf2 {[%emt 0:00:03]} Qb3 {[%emt 0:00:30]} 48. Qa6 {[%emt 0:02:56]} Qb2+ {[%emt 0:00:30]} 49. Qe2 {[%emt 0:00:00]} Qxb7 {[%emt 0:01:30]} 50. Qxe6 {[%emt 0:00:06]} Qb2+ {[%emt 0:00:30]} 51. Qe2 {[%emt 0:00:13]} Bg3+ {[%emt 0:01:30]} 52. Ke3 {[%emt 0:02:22]} Qc1+ {[%emt 0:02:30]} 53. Kd3 {[%emt 0:01:28]} Qa3+ {[%emt 0:00:30]} 54. Kc2 {[%emt 0:00:10]} Qa2+ {[%emt 0:01:30]} 55. Kd3 {[%emt 0:00:25]} Qa6+ {[%emt 0:00:00]} 56. Kd2 {[%emt 0:00:20]} Bf4+ {[%emt 0:00:00]} 57. Ke1 {[%emt 0:00:54]} Bg3+ {[%emt 0:01:30]} 58. Kd2 {[%emt 0:00:30]} Qa5+ {[%emt 0:00:30]} 59. Kc2 {[%emt 0:00:23]} Qa2+ {[%emt 0:00:30]} 60. Kd3 {[%emt 0:00:19]} Qb3+ {[%emt 0:00:30]} 61. Kd2 {[%emt 0:00:00]} Bf4+ {[%emt 0:01:30]} 62. Ke1 {[%emt 0:00:00]} Bg3+ {[%emt 0:01:30]} 63. Kd2 {[%emt 0:00:01]} Qb2+ {[%emt 0:01:30]} 64. Kd3 {[%emt 0:00:07]} Qb3+ {[%emt 0:00:30]} 65. Kd2 {[%emt 0:00:04]} Qb2+ {[%emt 0:00:30]} 66. Kd3 {[%emt 0:00:30]} Qb3+ {[%emt 0:00:00]} 67. Kd2 {[%emt 0:00:17]} Qb2+ {[%emt 0:00:00]} 1/2-1/2

[Event "5th Ordu Open 2019"]
[Site "Ordu"]
[Date "2019.05.02"]
[Round "5.14"]
[White "Onmus, Arif"]
[Black "Cakmak, Kursat Kagan"]
[Result "1-0"]
[ECO "B72"]
[WhiteElo "1527"]
[BlackElo "1304"]
[Annotator "NA RC"]
[PlyCount "89"]
[EventDate "2019.04.29"]
[EventType "swiss"]
[EventCountry "TUR"]
[SourceTitle "playchess.com"]
[Source "ChessBase"]
[SourceQuality "1"]
[TimeControl "5400+30"]

1. e4 {[%emt 0:31:30]} c5 {[%emt 0:30:30]} 2. Nf3 {[%emt 0:01:30]} d6 {[%emt 0:00:30]} 3. d4 {[%emt 0:00:30]} cxd4 {[%emt 0:00:00]} 4. Nxd4 {[%emt 0:00:00]} Nf6 {[%emt 0:00:00]} 5. Nc3 {[%emt 0:01:00]} g6 {[%emt 0:00:00]} 6. Be3 {[%emt 0:00:30]} Bg7 {[%emt 0:00:00]} 7. Qd2 {[%emt 0:00:00]} Ng4 {[%emt 0:00:00]} 8. Bb5+ {[%emt 0:00:00]} Bd7 {[%emt 0:00:00]} 9. O-O-O {[%emt 0:01:30]} Nxe3 {[%emt 0:00:00]} 10. fxe3 {[%emt 0:00:30]} O-O {[%emt 0:00:00]} 11. h4 {[%emt 0:00:30]} a6 {[%emt 0:00:30]} 12. Bd3 {[%emt 0:00:30]} Nc6 {[%emt 0:00:30]} 13. Nf3 {[%emt 0:02:30]} Bg4 {[%emt 0:01:30]} 14. h5 {[%emt 0:02:30]} gxh5 {[%emt 0:02:30]} 15. Be2 {[%emt 0:01:30]} Qa5 {[%emt 0:00:30]} 16. Nd4 {[%emt 0:00:30]} Qg5 {[%emt 0:03:30]} 17. Bxg4 {[%emt 0:01:30]} Qxg4 {[%emt 0:01:30]} 18. Rh3 {[%emt 0:00:30]} Be5 {[%emt 0:00:30]} 19. Nf5 {[%emt 0:00:30]} Qg5 {[%emt 0:01:30]} 20. Rdh1 {[%emt 0:00:30]} e6 {[%emt 0:01:30]} 21. Rxh5 {[%emt 0:01:30]} Qg6 {[%emt 0:01:30]} 22. Nd4 {[%emt 0:03:30]} Nxd4 {[%emt 0:02:30]} 23. exd4 {[%emt 0:00:30]} Bf6 {[%emt 0:00:30]} 24. e5 {[%emt 0:02:30]} dxe5 {[%emt 0:00:30]} 25. dxe5 {[%emt 0:00:30]} Rfd8 {[%emt 0:00:30]} 26. Qf4 {[%emt 0:03:30]} Be7 {[%emt 0:00:30]} 27. Rxh7 {[%emt 0:00:00]} Bg5 {[%emt 0:01:30]} 28. Rh8+ {[%emt 0:00:00]} Kg7 {[%emt 0:00:30]} 29. R1h7+ {[%emt 0:00:30]} Qxh7 {[%emt 0:00:30]} 30. Rxh7+ {[%emt 0:00:30]} Kg6 {[%emt 0:00:30]} 31. Rg7+ {[%emt 0:00:00]} Kxg7 {[%emt 0:00:00]} 32. Qxg5+ {[%emt 0:00:00]} Kf8 {[%emt 0:00:00]} 33. Ne4 {[%emt 0:00:00]} b5 {[%emt 0:03:30]} 34. Qf6 {[%emt 0:01:00]} Ke8 {[%emt 0:01:30]} 35. Ng5 {[%emt 0:00:30]} Ra7 {[%emt 0:00:00]} 36. Ne4 {[%emt 0:00:30]} Rad7 {[%emt 0:01:00]} 37. Nd6+ {[%emt 0:00:30]} Kf8 {[%emt 0:00:00]} 38. g4 {[%emt 0:00:30]} Rxd6 {[%emt 0:00:00]} 39. exd6 {[%emt 0:00:30]} Rxd6 {[%emt 0:00:30]} 40. g5 {[%emt 0:00:30]} Rd5 {[%emt 0:00:30]} 41. g6 {[%emt 0:01:30]} Rf5 {[%emt 0:00:30]} 42. g7+ {[%emt 0:00:30]} Kg8 {[%emt 0:00:30]} 43. Qh6 {[%emt 0:00:00]} Rf1+ {[%emt 0:00:00]} 44. Kd2 {[%emt 0:00:00]} Rf2+ {[%emt 0:00:00]} 45. Ke3 {[%emt 0:00:00]} 1-0